bitfinex/quotes_SOLUSD_20251126
["timestamp","ask_amount","ask_price","bid_price","bid_amount"]
[1764139946761,0.69,139.74,139.73,2.01002043]
[1764139947545,0.79,139.76,139.73,10.81996535]
[1764139947744,0.79,139.76,139.75,2.01002043]
[1764139948465,0.79,139.76,139.73,8.80994492]
[1764139948660,17.098864,139.76,139.74,2.01002043]
[1764139949364,0.1,139.76,139.75,2.01002043]
[1764139949573,0.1,139.76,139.75,10.81996535]
[1764139949960,0.1,139.76,139.75,2.01002043]
[1764139950162,0.1,139.76,139.73,25.04818676]
[1764139950361,0.1,139.76,139.75,2.01002043]
[1764139950747,0.1,139.76,139.75,9.16565549]
[1764139951474,0.1,139.76,139.75,20.53562084]
[1764139952881,0.1,139.78,139.76,8.80994492]
[1764139953082,0.1,139.78,139.77,10.81996535]
[1764139953253,0.1,139.78,139.77,13.97996535]
[1764139954062,0.1,139.78,139.77,16.84642419]
[1764139954582,0.1,139.78,139.77,24.00103533]
[1764139955774,0.1,139.78,139.77,20.84103533]
[1764139956985,0.79,139.78,139.77,17.97457649]
[1764139957172,0.1,139.78,139.77,17.97457649]
[1764139957383,0.1,139.78,139.77,18.52457649]
[1764139957962,0.79,139.78,139.77,2.01002043]
[1764139958471,0.79,139.78,139.76,15.96500299]
[1764139959188,0.79,139.78,139.76,17.97502342]
[1764139959983,0.79,139.78,139.76,15.96500299]
[1764139960181,0.79,139.78,139.76,17.97502342]
[1764139960876,0.79,139.78,139.77,2.01002043]
[1764139961595,0.79,139.78,139.76,17.97502342]
[1764139962694,0.1,139.78,139.77,10.81996535]
[1764139963063,0.1,139.78,139.77,21.13457649]
[1764139966402,0.1,139.78,139.77,19.12455606]
[1764139966706,0.82,139.78,139.76,13.18155366]
[1764139966916,0.1,139.78,139.76,15.19157409]
[1764139967199,0.82,139.78,139.75,7.15560858]
[1764139967773,0.82,139.78,139.74,12.32606908]
[1764139967978,0.82,139.78,139.74,10.31604865]
[1764139968893,2.01002043,139.77,139.72,7.15705763]
[1764139969197,2.73002043,139.76,139.72,7.15705763]
[1764139969401,0.72,139.76,139.72,7.15705763]
[1764139969705,0.72,139.75,139.72,7.15705763]
[1764139970483,0.72,139.75,139.71,10.31750676]
[1764139970484,2.73002043,139.75,139.71,10.31750676]
[1764139970683,9.88570719,139.75,139.71,7.15750676]
[1764139970888,2.73002043,139.74,139.7,7.15805764]
[1764139971092,2.73002043,139.74,139.69,7.15859864]
[1764139971093,2.01002043,139.73,139.69,7.15859864]
[1764139971401,2.01002043,139.72,139.66,2.01002043]
[1764139971699,2.01002043,139.7,139.64,30.2338816]
[1764139972010,2.01002043,139.7,139.64,12.33129227]
[1764139972185,0.72,139.69,139.64,12.33129227]
[1764139973601,2.73002043,139.69,139.64,7.16127184]
[1764139974101,0.72,139.68,139.64,7.16127184]
[1764139975397,0.72,139.68,139.66,7.16024631]
[1764139976074,2.73002043,139.68,139.65,7.16072238]
[1764139976307,0.72,139.68,139.64,7.16112154]
[1764139976499,0.72,139.67,139.64,7.16112154]
[1764139980594,2.73002043,139.67,139.63,10.32161023]
[1764139980809,2.73002043,139.67,139.62,26.91561503]
[1764139980810,2.01002043,139.64,139.62,0.2]
[1764139980988,2.01002043,139.65,139.62,0.2]
[1764139981178,0.72,139.65,139.62,7.36226415]
[1764139981383,0.72,139.65,139.62,16.72220907]
[1764139981606,0.72,139.65,139.62,34.62795323]
[1764139981790,0.72,139.65,139.62,34.07795323]
[1764139982105,103.4,139.66,139.62,34.62795323]
[1764139982306,104.1,139.66,139.62,34.62795323]
[1764139982806,103.4,139.66,139.62,34.62795323]
[1764139982981,0.7,139.69,139.63,14.52996535]
[1764139983188,2.01002043,139.67,139.63,11.96994492]
[1764139983593,0.7,139.66,139.63,11.96994492]
[1764139984090,0.7,139.66,139.64,7.16127184]
[1764139986115,0.7,139.69,139.66,7.16024631]
[1764139986285,0.7,139.68,139.66,7.16024631]
[1764139986978,105.41002043,139.7,139.66,7.16024631]
[1764139987179,0.7,139.68,139.66,7.16024631]
[1764139989210,105.41002043,139.7,139.66,7.16024631]
[1764139989512,105.41002043,139.7,139.67,0.55]
[1764139989513,103.4,139.7,139.67,0.55]
[1764139989696,104.1,139.7,139.67,9.35994492]
[1764139989899,2.71002043,139.69,139.66,8.80994492]
[1764139990103,2.01002043,139.68,139.66,8.80994492]
[1764139990308,2.71002043,139.68,139.66,8.80994492]
[1764139990590,0.7,139.67,139.66,8.80994492]
[1764139991208,0.7,139.69,139.66,7.1600753]
[1764139991791,2.01002043,139.68,139.65,7.16057809]
[1764139992014,2.71002043,139.67,139.63,8.80994492]
[1764139992393,0.7,139.66,139.63,8.80994492]
[1764139993012,0.7,139.66,139.63,15.97172963]
[1764139996205,104.09,139.7,139.65,2.01002043]
[1764139996411,0.69,139.69,139.65,5.72002043]
[1764139996613,0.69,139.69,139.65,3.71]
[1764139996800,0.69,139.69,139.63,37.03619142]
[1764139996999,0.69,139.69,139.63,62.2392952]
[1764139997704,0.69,139.69,139.64,3.68615919]
[1764139998024,0.69,139.69,139.66,8.80994492]
[1764139998527,103.4,139.7,139.66,12.49610411]
[1764139998705,104.09,139.7,139.66,15.65610411]
[1764139999202,0.69,139.71,139.67,9.35994492]
[1764139999410,16.998864,139.71,139.67,9.35994492]
[1764139999619,16.998864,139.71,139.67,8.80994492]
[1764139999826,0.69,139.7,139.67,8.80994492]
[1764140000121,0.69,139.7,139.68,7.15922107]
[1764140000825,3.85,139.72,139.69,8.80994492]
[1764140001124,0.69,139.71,139.69,8.80994492]
[1764140001798,0.69,139.71,139.68,25.05727376]
[1764140002124,20.13502319,139.71,139.68,7.15922107]
[1764140002626,0.69,139.7,139.68,7.15922107]
[1764140004621,0.69,139.7,139.64,17.90262453]
[1764140004622,14.14445639,139.7,139.64,17.90262453]
[1764140004823,3.13615919,139.66,139.65,8.80994492]
[1764140005020,6.29615919,139.66,139.62,0.2]
[1764140005219,0.69,139.65,139.62,0.2]
[1764140005421,16.308864,139.68,139.64,8.80994492]
[1764140005621,16.308864,139.68,139.64,11.94610411]
[1764140006015,3.85,139.69,139.66,8.80994492]
[1764140006421,16.998864,139.69,139.66,8.80994492]
[1764140006913,6.29615919,139.71,139.67,0.55]
[1764140006914,0.69,139.71,139.67,0.55]
[1764140007114,16.308864,139.71,139.68,8.80994492]
[1764140007313,16.308864,139.71,139.7,8.80994492]
[1764140007509,16.308864,139.72,139.7,8.80994492]
[1764140007730,0.69,139.72,139.7,8.80994492]
[1764140008838,3.13615919,139.71,139.68,7.15907194]
[1764140009213,0.69,139.7,139.68,7.15907194]
[1764140009417,0.69,139.72,139.68,7.15907194]
[1764140010415,16.308864,139.74,139.7,8.80994492]
[1764140010622,0.69,139.74,139.7,11.96994492]
[1764140010834,16.308864,139.75,139.7,11.96994492]
[1764140011038,0.69,139.74,139.7,11.96994492]
[1764140011221,0.69,139.74,139.7,12.51994492]
[1764140012148,0.69,139.74,139.69,3.13615919]
[1764140012149,0.69,139.74,139.69,8.80994492]
[1764140012337,0.69,139.74,139.7,7.15819613]
[1764140012642,19.468864,139.75,139.7,7.70819613]
[1764140012847,20.158864,139.75,139.7,7.70819613]
[1764140013043,0.69,139.74,139.7,25.05368646]
[1764140013264,0.69,139.74,139.7,7.15819613]
[1764140013443,3.82615919,139.74,139.7,7.15819613]
[1764140013744,3.13615919,139.71,139.67,8.80994492]
[1764140013930,3.13615919,139.7,139.67,8.80994492]
[1764140014128,0.69,139.7,139.67,8.80994492]
[1764140014730,16.308864,139.74,139.67,33.86901271]
[1764140014931,6.31615919,139.73,139.67,33.86901271]
[1764140015131,7.00615919,139.73,139.67,33.86901271]
[1764140015334,0.69,139.72,139.67,33.86901271]
[1764140015734,3.82615919,139.72,139.67,33.86901271]
[1764140015932,3.82615919,139.72,139.67,15.96967857]
[1764140016163,0.69,139.71,139.67,15.96967857]
[1764140016456,3.82615919,139.71,139.67,15.96967857]
[1764140016824,0.69,139.7,139.67,15.96967857]
[1764140018366,3.82615919,139.7,139.67,15.96967857]
[1764140018543,0.69,139.7,139.67,15.96967857]
[1764140018856,0.69,139.69,139.67,15.96967857]
[1764140019554,0.69,139.7,139.67,15.96967857]
[1764140019932,16.998864,139.71,139.66,15.97002827]
[1764140020136,16.998864,139.71,139.67,3.73]
[1764140020947,16.998864,139.71,139.69,8.80994492]
[1764140023282,0.69,139.71,139.7,15.96814105]
[1764140023439,3.13615919,139.72,139.7,15.96814105]
[1764140023957,0.71,139.71,139.7,15.96814105]
[1764140024539,3.13615919,139.72,139.7,15.96814105]
[1764140024744,3.84615919,139.72,139.7,15.96814105]
[1764140024967,0.71,139.72,139.7,15.96814105]
[1764140025164,0.71,139.71,139.7,8.80994492]
[1764140025647,0.71,139.71,139.69,8.80994492]
[1764140025648,3.84615919,139.71,139.69,8.80994492]
[1764140026076,0.71,139.7,139.69,8.80994492]
[1764140026256,3.84615919,139.71,139.69,8.80994492]
[1764140027148,0.71,139.73,139.68,34.41704622]
[1764140027471,0.71,139.72,139.68,34.41704622]
[1764140029343,0.71,139.72,139.68,33.86704622]
[1764140029550,3.13615919,139.71,139.68,33.86704622]
[1764140029748,3.13615919,139.71,139.69,8.80994492]
[1764140029965,0.71,139.7,139.69,8.80994492]
[1764140031470,0.71,139.7,139.69,15.96865348]
[1764140033074,0.71,139.76,139.69,19.65481267]
[1764140033256,0.71,139.76,139.71,8.80994492]
[1764140033763,0.71,139.76,139.72,0.55]
[1764140034467,0.71,139.76,139.74,8.80994492]
[1764140035548,3.84615919,139.76,139.74,8.80994492]
[1764140036071,0.71,139.75,139.74,8.80994492]
[1764140036365,0.71,139.75,139.72,7.15706725]
[1764140036565,20.15502319,139.75,139.72,7.15706725]
[1764140037068,0.71,139.74,139.72,7.15706725]
[1764140037569,16.308864,139.75,139.73,8.80994492]
[1764140037945,17.018864,139.75,139.73,8.80994492]
[1764140038765,17.018864,139.75,139.73,7.15640463]
[1764140040373,0.71,139.75,139.73,7.15640463]
[1764140043262,123.66502319,139.78,139.74,9.35994492]
[1764140043463,0.72,139.77,139.74,8.80994492]
[1764140043655,19.44502319,139.75,139.72,7.15698488]
[1764140043856,3.13615919,139.73,139.72,8.80994492]
[1764140044059,19.488864,139.75,139.72,8.80994492]
[1764140044060,0.72,139.74,139.72,8.80994492]
[1764140044259,3.85615919,139.74,139.72,8.80994492]
[1764140044776,0.72,139.73,139.72,8.80994492]
[1764140045076,3.85615919,139.73,139.72,8.80994492]
[1764140045373,0.72,139.73,139.72,8.80994492]
[1764140048356,17.028864,139.73,139.72,8.80994492]
[1764140048559,11.01285396,139.73,139.7,8.80994492]
[1764140048766,3.13615919,139.71,139.68,8.80994492]
[1764140049148,0.72,139.7,139.68,8.80994492]
[1764140049780,0.72,139.71,139.68,8.80994492]
[1764140049966,3.85615919,139.71,139.68,8.80994492]
[1764140050277,0.72,139.7,139.69,15.96865348]
[1764140050789,0.72,139.71,139.69,15.96865348]
[1764140051182,3.85615919,139.71,139.69,8.80994492]
[1764140051691,0.72,139.71,139.69,8.80994492]
[1764140052388,3.85615919,139.71,139.69,8.80994492]
[1764140052585,3.13615919,139.7,139.69,8.80994492]
[1764140052887,0.72,139.7,139.69,8.80994492]
[1764140054679,3.85615919,139.7,139.69,8.80994492]
[1764140055990,0.72,139.7,139.69,15.96865348]
[1764140056285,0.72,139.7,139.69,8.80994492]
[1764140056597,3.85615919,139.7,139.69,8.80994492]
[1764140057156,0.72,139.7,139.69,15.96865348]
[1764140057483,3.13615919,139.71,139.69,15.96865348]
[1764140057781,3.83615919,139.71,139.69,15.96865348]
[1764140058680,2.70720569,139.71,139.69,15.96865348]
[1764140058880,2.00720569,139.71,139.69,15.96865348]
[1764140059082,2.70720569,139.7,139.69,8.80994492]
[1764140059483,2.00720569,139.7,139.69,15.96865348]
[1764140059785,0.7,139.7,139.69,8.80994492]
[1764140060284,2.70720569,139.7,139.69,8.80994492]
[1764140060486,2.70720569,139.7,139.64,17.90271583]
[1764140060787,2.00720569,139.67,139.65,8.80994492]
[1764140061162,0.7,139.67,139.65,8.80994492]
[1764140062175,2.00720569,139.66,139.63,10.32163092]
[1764140062378,18.31606969,139.66,139.64,8.80994492]
[1764140062572,0.7,139.65,139.64,8.80994492]
[1764140062878,2.00720569,139.65,139.64,8.80994492]
[1764140063081,18.31606969,139.66,139.64,7.16124781]
[1764140063277,19.01606969,139.66,139.64,7.16124781]
[1764140064995,16.308864,139.66,139.64,8.80994492]
[1764140066094,16.308864,139.66,139.64,15.97109646]
[1764140066305,0.7,139.7,139.65,0.55]
[1764140066484,2.00720569,139.7,139.65,3.16]
[1764140066804,0.7,139.69,139.65,3.71]
[1764140066979,2.70720569,139.69,139.65,3.71]
[1764140067169,2.70720569,139.69,139.65,3.16]
[1764140067375,0.7,139.68,139.65,3.16]
[1764140068197,0.7,139.68,139.67,8.80994492]
[1764140068492,2.70720569,139.68,139.66,7.16024631]
[1764140069189,0.7,139.68,139.66,7.16024631]
[1764140070482,18.31606969,139.67,139.63,7.16178471]
[1764140070687,2.00720569,139.65,139.62,7.36221653]
[1764140070874,2.00720569,139.65,139.63,8.80994492]
[1764140071193,0.7,139.65,139.63,8.80994492]
[1764140071372,2.70720569,139.66,139.63,8.80994492]
[1764140071574,2.00720569,139.66,139.63,8.80994492]
[1764140071775,0.7,139.65,139.63,8.80994492]
[1764140072174,0.7,139.65,139.63,15.97172633]
[1764140074197,2.00720569,139.66,139.63,15.97172633]
[1764140074374,120.408864,139.67,139.63,16.52172633]
[1764140074577,2.70720569,139.66,139.63,15.97172633]
[1764140074776,2.00720569,139.65,139.63,15.97172633]
[1764140074997,2.00720569,139.65,139.63,8.80994492]
[1764140074998,2.00720569,139.64,139.63,8.80994492]
[1764140075180,2.70720569,139.64,139.63,8.80994492]
[1764140075696,16.308864,139.63,139.62,0.2]
[1764140075897,19.01606969,139.63,139.62,0.2]
[1764140081505,2.70720569,139.63,139.62,0.2]
[1764140083598,0.7,139.63,139.62,0.2]
[1764140084101,2.70720569,139.63,139.62,0.2]
[1764140084700,2.70720569,139.63,139.59,0.55]
[1764140084701,31.34506009,139.63,139.53,0.2]
[1764140084882,31.34506009,139.63,139.56,0.71]
[1764140084883,18.31606969,139.61,139.56,0.71]
[1764140085081,2.00720569,139.61,139.57,8.80994492]
[1764140085276,0.69,139.61,139.57,8.80994492]
[1764140085477,0.69,139.61,139.59,8.80994492]
[1764140085974,0.69,139.61,139.57,0.71]
[1764140086180,0.69,139.61,139.59,8.80994492]
[1764140087006,2.69720569,139.61,139.59,8.80994492]
[1764140087299,0.69,139.6,139.59,8.80994492]
[1764140088606,0.69,139.6,139.59,7.16383695]
[1764140090005,0.69,139.6,139.59,8.80994492]
[1764140092295,0.69,139.6,139.59,7.16383695]
[1764140093604,0.69,139.6,139.59,8.80994492]
[1764140093804,108.58720569,139.62,139.59,8.80994492]
[1764140093994,0.69,139.61,139.59,8.80994492]
[1764140094613,107.27,139.62,139.59,8.80994492]
[1764140094910,107.27,139.62,139.59,9.51994492]
[1764140095806,107.27,139.62,139.6,7.16332378]
[1764140096522,108.58720569,139.62,139.59,15.97370731]
[1764140096709,0.69,139.61,139.59,15.97370731]
[1764140097087,108.58720569,139.62,139.59,15.97370731]
[1764140097395,107.27,139.62,139.59,16.68370731]
[1764140098109,107.27,139.62,139.59,15.97370731]
[1764140098308,0.69,139.61,139.59,15.97370731]
[1764140099011,2.69720569,139.61,139.59,15.97370731]
[1764140099311,0.69,139.61,139.59,15.97370731]
[1764140099996,105.40720569,139.62,139.59,15.97370731]
[1764140100194,104.09,139.62,139.59,15.97370731]
[1764140100382,103.4,139.62,139.61,8.80994492]
[1764140100789,104.09,139.62,139.61,8.80994492]
[1764140100989,104.09,139.62,139.59,25.07335476]
[1764140100990,106.09720569,139.62,139.59,7.16376239]
[1764140101206,106.09720569,139.62,139.6,8.80994492]
[1764140102003,103.4,139.62,139.6,16.68296156]
[1764140102690,103.4,139.62,139.6,15.97296156]
[1764140103506,103.4,139.62,139.61,0.72]
[1764140103820,3.16,139.65,139.61,2.72720569]
[1764140104018,104.09,139.66,139.63,8.80994492]
[1764140105002,0.69,139.65,139.63,8.80994492]
[1764140105599,2.69720569,139.65,139.63,8.80994492]
[1764140105805,0.69,139.65,139.63,8.80994492]
[1764140106107,0.60816608,139.64,139.63,8.80994492]
[1764140107333,0.60816608,139.64,139.61,15.97261169]
[1764140107527,0.60816608,139.64,139.61,16.69261169]
[1764140107829,3.16,139.65,139.63,8.80994492]
[1764140108013,3.85,139.65,139.63,15.97132631]
[1764140108217,0.69,139.65,139.63,15.97132631]
[1764140109829,106.56,139.66,139.63,16.69132631]
[1764140110026,104.09,139.66,139.63,16.69132631]
[1764140110415,104.09,139.66,139.63,15.97132631]
[1764140110835,103.4,139.66,139.63,15.97132631]
[1764140111022,104.09,139.66,139.63,15.97132631]
[1764140111221,107.25,139.69,139.65,8.80994492]
[1764140111421,109.25720569,139.69,139.65,8.80994492]
[1764140111619,0.69,139.68,139.65,8.80994492]
[1764140112445,106.56,139.69,139.65,0.72]
[1764140112616,107.25,139.69,139.65,0.72]
[1764140113005,107.25,139.69,139.67,8.80994492]
[1764140114328,109.25720569,139.69,139.67,15.969508]
[1764140114535,107.25,139.69,139.67,15.969508]
[1764140115323,104.09,139.69,139.67,15.969508]
[1764140117536,0.68,139.68,139.67,8.80994492]
[1764140117835,0.68,139.68,139.67,15.96967857]
[1764140117836,2.68720569,139.68,139.67,15.96967857]
[1764140118042,0.68,139.68,139.67,15.96967857]
[1764140118353,103.4,139.69,139.67,15.96967857]
[1764140118714,104.08,139.69,139.67,15.96967857]
[1764140118916,0.68,139.68,139.67,15.96967857]
[1764140119645,107.21649878,139.69,139.67,15.96967857]
[1764140119824,104.08,139.69,139.67,15.96967857]
[1764140121046,103.4,139.69,139.67,15.96967857]
[1764140121223,3.16,139.7,139.67,16.66967857]
[1764140121430,0.68,139.71,139.67,16.66967857]
[1764140122336,3.81649878,139.71,139.67,33.86901271]
[1764140122538,3.13649878,139.7,139.67,33.86901271]
[1764140122738,3.81649878,139.7,139.67,33.86901271]
[1764140122938,0.68,139.69,139.67,33.86901271]
[1764140125022,0.68,139.71,139.68,8.80994492]
[1764140125244,16.988864,139.72,139.68,9.50994492]
[1764140125544,0.68,139.71,139.68,9.50994492]
[1764140125859,106.53649878,139.73,139.69,0.7]
[1764140126351,0.68,139.72,139.69,0.7]
[1764140126737,0.68,139.72,139.71,8.80994492]
[1764140128752,0.1,139.76,139.71,8.80994492]
[1764140128753,0.1,139.78,139.72,16.308864]
[1764140129056,0.1,139.78,139.77,8.80994492]
[1764140129230,0.1,139.78,139.77,6.31649878]
[1764140129649,0.1,139.78,139.77,14.81249177]
[1764140129835,0.1,139.78,139.77,17.99249177]
[1764140130949,0.1,139.78,139.77,25.14710291]
[1764140131349,0.1,139.82,139.78,8.80994492]
[1764140131563,0.1,139.82,139.81,8.80994492]
[1764140131761,1e-08,139.82,139.81,15.1264437]
[1764140131958,1e-08,139.82,139.81,34.10328808]
[1764140133033,1e-08,139.82,139.81,41.25585227]
[1764140133333,1e-08,139.82,139.81,25.14402955]
[1764140133750,1e-08,139.82,139.81,22.00753077]
[1764140133952,1e-08,139.82,139.81,25.14402955]
[1764140134953,1e-08,139.82,139.81,21.96402955]
[1764140135135,1e-08,139.82,139.81,25.14402955]
[1764140136458,1e-08,139.82,139.81,21.96402955]
[1764140136635,1e-08,139.82,139.81,25.14402955]
[1764140136952,1e-08,139.82,139.81,15.96250911]
[1764140137129,1e-08,139.82,139.81,22.27900789]
[1764140137952,1e-08,139.82,139.81,19.14250911]
[1764140138151,1e-08,139.82,139.81,22.27900789]
[1764140139662,1e-08,139.82,139.81,25.14464531]
[1764140140268,1e-08,139.82,139.81,22.27900789]
[1764140143051,1e-08,139.82,139.81,19.09900789]
[1764140143263,1e-08,139.82,139.81,22.27900789]
[1764140143453,1e-08,139.82,139.81,25.14444003]
[1764140147168,1e-08,139.83,139.81,25.14444003]
[1764140147385,1e-08,139.83,139.82,11.9464437]
[1764140147749,1e-08,139.83,139.82,15.03359612]
[1764140148393,1e-08,139.83,139.82,22.18564875]
[1764140150155,3.76715242,139.87,139.83,8.80994492]
[1764140150156,3.08715242,139.87,139.83,8.80994492]
[1764140150363,3.08715242,139.87,139.86,11.9464437]
[1764140150556,3.08715242,139.87,139.86,15.1264437]
[1764140150756,3.08715242,139.87,139.86,31.4353077]
[1764140151371,3.76715242,139.87,139.86,31.4353077]
[1764140151560,3.08715242,139.87,139.86,31.4353077]
[1764140152271,3.08715242,139.87,139.86,35.40531485]
[1764140152468,3.08715242,139.87,139.86,38.58531485]
[1764140152772,1e-08,139.87,139.86,38.58531485]
[1764140153855,1e-08,139.87,139.86,35.44881607]
[1764140154153,1e-08,139.87,139.86,38.58531485]
[1764140154380,1e-08,139.87,139.86,35.40531485]
[1764140154667,1e-08,139.87,139.86,38.58531485]
[1764140155250,0.68000001,139.87,139.86,32.26881607]
[1764140155544,0.68000001,139.87,139.86,38.58531485]
[1764140156982,1e-08,139.87,139.86,38.58531485]
[1764140158270,1e-08,139.87,139.86,32.26881607]
[1764140158477,0.68000001,139.87,139.86,22.27645085]
[1764140164059,1e-08,139.87,139.86,22.27645085]
[1764140164765,0.66000001,139.87,139.86,22.27645085]
[1764140167169,1e-08,139.87,139.86,22.27645085]
[1764140167958,1e-08,139.87,139.86,32.55958047]
[1764140171082,1e-08,139.87,139.86,26.24308169]
[1764140171083,0.66000001,139.87,139.86,26.24308169]
[1764140171268,0.66000001,139.87,139.86,22.27645085]
[1764140172570,1e-08,139.87,139.86,22.27645085]
[1764140173275,1e-08,139.87,139.86,38.58531485]
[1764140173876,0.66000001,139.87,139.86,35.40531485]
[1764140174078,0.66000001,139.87,139.86,38.58531485]
[1764140174277,0.66000001,139.87,139.86,22.27645085]
[1764140174585,1e-08,139.87,139.86,22.27645085]
[1764140178474,1e-08,139.87,139.86,43.75795885]
[1764140180583,1e-08,139.87,139.86,42.6221988]
[1764140181698,1e-08,139.87,139.86,21.1406908]
[1764140182401,102.57,139.93,139.87,8.80994492]
[1764140182402,0.66,139.93,139.87,8.80994492]
[1764140182576,0.66,139.93,139.92,10.81068365]
[1764140182779,0.66,139.93,139.92,13.99068365]
[1764140183171,0.66,139.93,139.88,4.80941341]
[1764140183380,2.00073873,139.92,139.89,3.18]
[1764140183906,0.66,139.91,139.89,3.18]
[1764140184106,0.66,139.91,139.89,12.32919732]
[1764140184304,0.66,139.91,139.9,10.81068365]
[1764140185677,0.66,139.91,139.9,17.95864648]
[1764140189302,0.66,139.91,139.9,21.13864648]
[1764140198711,0.66,139.91,139.9,17.95864648]
[1764140198919,0.66,139.91,139.9,21.11864648]
[1764140201212,0.66,139.91,139.9,19.11790775]
[1764140203218,16.408864,139.96,139.9,38.98855355]
[1764140203427,0.66,139.92,139.91,10.81068365]
[1764140204422,0.66,139.92,139.91,17.95813558]
[1764140205007,0.66,139.92,139.91,15.95739685]
[1764140205322,0.66,139.92,139.91,7.14745193]
[1764140207121,0.66,139.92,139.91,3.16]
[1764140207924,0.71,139.92,139.91,3.16]
[1764140208107,0.71,139.92,139.91,13.97068365]
[1764140208829,0.71,139.92,139.91,11.96994492]
[1764140209021,0.71,139.92,139.91,21.11813558]
[1764140209727,0.71,139.94,139.92,8.80994492]
[1764140209910,0.71,139.94,139.93,8.80994492]
[1764140210117,0.71,139.94,139.93,11.96994492]
[1764140211430,0.71,139.94,139.93,21.117114]
[1764140212331,0.71,139.94,139.93,10.30643035]
[1764140214924,0.71,139.94,139.92,19.11688602]
[1764140218725,7.5325188,139.94,139.88,8.80994492]
[1764140218924,0.71,139.93,139.88,13.97068365]
[1764140219135,0.71,139.93,139.88,11.96994492]
[1764140219329,5.53178007,139.93,139.88,13.97068365]
[1764140219716,0.71,139.92,139.88,13.97068365]
[1764140220326,0.71,139.92,139.89,7.1484738]
[1764140220928,4.82178007,139.93,139.91,10.81068365]
[1764140221129,0.71,139.93,139.92,5.16073873]
[1764140221323,109.81495189,139.96,139.92,3.16]
[1764140221527,111.81569062,139.96,139.92,3.16]
[1764140221722,4.8210463,139.95,139.92,3.16]
[1764140221921,5.5310463,139.95,139.92,3.16]
[1764140222131,0.71,139.94,139.92,3.16]
[1764140222341,0.71,139.94,139.92,10.30693963]
[1764140222642,0.71,139.94,139.92,7.14693963]
[1764140230419,0.71,139.94,139.92,9.14767836]
[1764140231428,0.81,139.96,139.93,11.50068365]
[1764140231635,0.81,139.96,139.94,5.16073873]
[1764140232229,0.81,139.96,139.95,7.14540907]
[1764140235348,0.81,139.96,139.95,15.95535399]
[1764140236652,0.1,139.96,139.95,15.95535399]
[1764140236850,0.81,139.96,139.95,15.95535399]
[1764140237355,0.1,139.96,139.95,17.95609272]
[1764140240457,0.81,139.96,139.91,19.86877736]
[1764140240764,0.81,139.96,139.92,11.96994492]
[1764140241052,0.81,139.96,139.92,13.97068365]
[1764140241252,0.81,139.96,139.94,2.00073873]
[1764140241455,0.1,139.96,139.95,8.80994492]
[1764140242045,0.81,139.96,139.95,8.80994492]
[1764140244336,0.81,139.96,139.95,15.95535399]
[1764140246660,0.81,139.96,139.95,19.11535399]
[1764140247049,0.81,139.96,139.95,15.95535399]
[1764140247250,0.81,139.96,139.95,19.11535399]
[1764140249046,0.81,139.96,139.95,22.23869996]
[1764140250850,0.81,139.96,139.95,19.11535399]
[1764140254660,0.81,139.96,139.95,15.95535399]
[1764140254966,0.81,139.96,139.95,19.11535399]
[1764140255566,0.1,139.96,139.95,19.11535399]
[1764140256142,0.1,139.96,139.95,15.95535399]
[1764140256342,0.1,139.96,139.95,19.11535399]
[1764140256962,0.81,139.96,139.95,19.11535399]
[1764140257566,0.1,139.96,139.95,19.11535399]
[1764140258563,0.81,139.96,139.95,19.11535399]
[1764140261768,7.9549446,139.96,139.92,15.95688602]
[1764140262071,0.81,139.96,139.92,19.11688602]
[1764140262246,0.71,139.95,139.92,19.11688602]
[1764140266072,0.71,139.95,139.92,10.3069411]
[1764140266789,113.54877121,139.95,139.9,11.93329089]
[1764140267080,113.54877121,139.95,139.91,8.80994492]
[1764140267253,0.69,139.94,139.91,8.80994492]
[1764140269378,0.69,139.94,139.91,15.95736989]
[1764140270981,7.83604227,139.94,139.91,8.80994492]
[1764140271177,0.69,139.93,139.91,8.80994492]
[1764140274289,0.69,139.93,139.9,8.80994492]